[Event "*** Titled Tuesday Blitz"]
[Site "Chess.com"]
[Date "2020.11.10"]
[Round "9"]
[White "Ariadna_Atreides"]
[Black "DonPreuss"]
[Result "0-1"]
[WhiteElo "2095"]
[BlackElo "2231"]
[TimeControl "180+1"]
[EndTime "11:51:28 PST"]
[Termination "DonPreuss won by resignation"]

1. d4 {[%clk 0:02:32.6]} 1... Nc6 {[%clk 0:02:59]} 2. Bf4 {[%clk 0:02:29.2]}
2... d6 {[%clk 0:02:58.8]} 3. Nf3 {[%clk 0:02:28.3]} 3... g6 {[%clk 0:02:59.1]}
4. d5 {[%clk 0:02:25.1]} 4... Nb8 {[%clk 0:02:58.3]} 5. e4 {[%clk 0:02:16.1]}
5... Bg7 {[%clk 0:02:58.3]} 6. c3 {[%clk 0:02:14.1]} 6... e5 {[%clk 0:02:58.2]}
7. Bg5 {[%clk 0:02:02.4]} 7... f6 {[%clk 0:02:57.3]} 8. Be3 {[%clk 0:02:00.7]}
8... Ne7 {[%clk 0:02:55.3]} 9. Qd2 {[%clk 0:01:58.4]} 9... h5 {[%clk 0:02:49.9]}
10. a4 {[%clk 0:01:48.6]} 10... c5 {[%clk 0:02:40.1]} 11. dxc6 {[%clk
0:01:42.5]} 11... bxc6 {[%clk 0:02:40.2]} 12. Na3 {[%clk 0:01:39.4]} 12... Be6
{[%clk 0:02:39.6]} 13. Bc4 {[%clk 0:01:36.6]} 13... d5 {[%clk 0:02:35.4]} 14.
exd5 {[%clk 0:01:20.8]} 14... cxd5 {[%clk 0:02:35.5]} 15. Bb5+ {[%clk
0:01:19.5]} 15... Kf7 {[%clk 0:02:35.6]} 16. O-O {[%clk 0:01:13.3]} 16... a6
{[%clk 0:02:32.1]} 17. Be2 {[%clk 0:01:11.5]} 17... Nbc6 {[%clk 0:02:14.8]} 18.
Nc2 {[%clk 0:01:04]} 18... Nf5 {[%clk 0:02:14.1]} 19. Rfd1 {[%clk 0:00:57.4]}
19... Nxe3 {[%clk 0:02:09.6]} 20. Nxe3 {[%clk 0:00:54.3]} 20... Bh6 {[%clk
0:02:09.7]} 21. Qc2 {[%clk 0:00:46.9]} 21... Ne7 {[%clk 0:02:01.3]} 22. a5
{[%clk 0:00:34.1]} 22... Qc7 {[%clk 0:01:57.6]} 23. Qa4 {[%clk 0:00:27.8]} 23...
Rhd8 {[%clk 0:01:55]} 24. Nc2 {[%clk 0:00:19.8]} 24... Bd7 {[%clk 0:01:41.1]}
25. Qa2 {[%clk 0:00:18.1]} 25... Be6 {[%clk 0:01:39.9]} 26. Qa4 {[%clk
0:00:17.4]} 26... Qc6 {[%clk 0:01:32.4]} 27. Qxc6 {[%clk 0:00:15.5]} 27... Nxc6
{[%clk 0:01:32.3]} 28. Nb4 {[%clk 0:00:15.3]} 28... Nxb4 {[%clk 0:01:30]} 29.
cxb4 {[%clk 0:00:16.2]} 29... Rdb8 {[%clk 0:01:17.2]} 30. Ra4 {[%clk 0:00:11.9]}
30... Bd7 {[%clk 0:01:15.1]} 31. Ra2 {[%clk 0:00:11.6]} 31... Ke6 {[%clk
0:01:09.5]} 32. Rc1 {[%clk 0:00:10]} 32... Rxb4 {[%clk 0:01:08.1]} 33. Rc7
{[%clk 0:00:09.1]} 33... Rab8 {[%clk 0:01:04.8]} 34. Bxa6 {[%clk 0:00:07.1]}
34... Rxb2 {[%clk 0:01:04.9]} 35. Rxb2 {[%clk 0:00:07.2]} 35... Rxb2 {[%clk
0:01:04.8]} 36. g3 {[%clk 0:00:06.9]} 36... Ra2 {[%clk 0:00:56.1]} 37. Rc5
{[%clk 0:00:06]} 37... Kd6 {[%clk 0:00:55.2]} 38. Rc2 {[%clk 0:00:02.1]} 38...
Rxc2 {[%clk 0:00:54]} 0-1

[Event "*** Titled Tuesday Blitz"]
[Site "Chess.com"]
[Date "2020.11.10"]
[Round "9"]
[White "Tenamu"]
[Black "lefonghua"]
[Result "0-1"]
[WhiteElo "2320"]
[BlackElo "2485"]
[TimeControl "180+1"]
[EndTime "11:51:30 PST"]
[Termination "lefonghua won by resignation"]

1. d4 {[%clk 0:02:55.6]} 1... Nf6 {[%clk 0:03:00.1]} 2. Nc3 {[%clk 0:02:54.6]}
2... d5 {[%clk 0:02:58.9]} 3. Bf4 {[%clk 0:02:53.6]} 3... g6 {[%clk 0:02:58.7]}
4. Qd2 {[%clk 0:02:52.9]} 4... Bg7 {[%clk 0:02:57.1]} 5. h3 {[%clk 0:02:53.8]}
5... c5 {[%clk 0:02:52.2]} 6. e3 {[%clk 0:02:53.3]} 6... O-O {[%clk 0:02:50.8]}
7. g4 {[%clk 0:02:52.1]} 7... cxd4 {[%clk 0:02:47.7]} 8. exd4 {[%clk 0:02:53]}
8... Nc6 {[%clk 0:02:45.3]} 9. Nf3 {[%clk 0:02:51.6]} 9... Ne4 {[%clk
0:02:44.1]} 10. Qe3 {[%clk 0:02:49.3]} 10... Qa5 {[%clk 0:02:40.4]} 11. a3
{[%clk 0:02:45.9]} 11... Nxc3 {[%clk 0:02:23.5]} 12. bxc3 {[%clk 0:02:43.9]}
12... b6 {[%clk 0:02:07.2]} 13. Kd2 {[%clk 0:02:22.7]} 13... Ba6 {[%clk
0:01:59.7]} 14. Bh6 {[%clk 0:02:21.9]} 14... Rac8 {[%clk 0:01:53]} 15. Bxg7
{[%clk 0:02:19.7]} 15... Kxg7 {[%clk 0:01:52.8]} 16. h4 {[%clk 0:02:18.4]} 16...
Bxf1 {[%clk 0:01:50.1]} 17. Raxf1 {[%clk 0:02:15.1]} 17... Qxa3 {[%clk
0:01:38.8]} 18. Ra1 {[%clk 0:02:10.1]} 18... Qd6 {[%clk 0:01:37.7]} 19. h5
{[%clk 0:02:08.9]} 19... Na5 {[%clk 0:01:35]} 20. Rxa5 {[%clk 0:02:08.2]} 20...
bxa5 {[%clk 0:01:34.9]} 21. hxg6 {[%clk 0:02:07.1]} 21... Qxg6 {[%clk 0:01:30]}
22. Rh5 {[%clk 0:02:03.6]} 22... f6 {[%clk 0:01:22.2]} 23. Nh4 {[%clk
0:01:58.6]} 23... Qxg4 {[%clk 0:01:11.3]} 24. Nf5+ {[%clk 0:01:53.7]} 24... Kh8
{[%clk 0:01:07.4]} 25. Qxe7 {[%clk 0:01:50.7]} 25... Qg6 {[%clk 0:00:53.9]} 26.
Rh6 {[%clk 0:01:35.1]} 26... Qf7 {[%clk 0:00:40.7]} 27. Qa3 {[%clk 0:01:31.3]}
27... Rce8 {[%clk 0:00:35.5]} 28. Qd6 {[%clk 0:01:24.5]} 28... Re6 {[%clk
0:00:32.6]} 29. Rxh7+ {[%clk 0:01:13.7]} 29... Kxh7 {[%clk 0:00:25.5]} 30. Qh2+
{[%clk 0:01:12.4]} 30... Kg6 {[%clk 0:00:19.1]} 31. Nh4+ {[%clk 0:01:09.3]}
31... Kg7 {[%clk 0:00:17.4]} 32. Nf5+ {[%clk 0:01:08.7]} 32... Kg6 {[%clk
0:00:16.4]} 33. Nh4+ {[%clk 0:01:08.8]} 33... Kh5 {[%clk 0:00:14.6]} 34. Nf5+
{[%clk 0:01:04.9]} 34... Kg5 {[%clk 0:00:14.9]} 35. Ne3 {[%clk 0:00:49.8]} 35...
Qh5 {[%clk 0:00:13.3]} 36. Qg3+ {[%clk 0:00:45.6]} 36... Kh6 {[%clk 0:00:12.5]}
37. Ng4+ {[%clk 0:00:43.3]} 37... Kh7 {[%clk 0:00:11.3]} 0-1

[Event "*** Titled Tuesday Blitz"]
[Site "Chess.com"]
[Date "2020.11.10"]
[Round "9"]
[White "blitzking1729"]
[Black "giantslayer83"]
[Result "0-1"]
[WhiteElo "2543"]
[BlackElo "2705"]
[TimeControl "180+1"]
[EndTime "11:51:32 PST"]
[Termination "giantslayer83 won by resignation"]

1. d4 {[%clk 0:03:00.9]} 1... Nf6 {[%clk 0:02:59.1]} 2. Bg5 {[%clk 0:02:59.7]}
2... Ne4 {[%clk 0:02:51.2]} 3. Bf4 {[%clk 0:02:59.1]} 3... d5 {[%clk 0:02:51.7]}
4. f3 {[%clk 0:02:58.9]} 4... Nf6 {[%clk 0:02:51.5]} 5. e4 {[%clk 0:02:58.9]}
5... dxe4 {[%clk 0:02:49.9]} 6. Nc3 {[%clk 0:02:59.2]} 6... exf3 {[%clk
0:02:32.9]} 7. Nxf3 {[%clk 0:03:00.1]} 7... Bf5 {[%clk 0:02:33.4]} 8. Bd3 {[%clk
0:02:48.5]} 8... Bg6 {[%clk 0:02:22.4]} 9. Qe2 {[%clk 0:02:41.6]} 9... e6 {[%clk
0:02:22]} 10. O-O-O {[%clk 0:02:40.8]} 10... c6 {[%clk 0:02:09]} 11. Bxg6 {[%clk
0:02:35.2]} 11... hxg6 {[%clk 0:02:09.9]} 12. Ne5 {[%clk 0:02:32.9]} 12... Bb4
{[%clk 0:02:02.6]} 13. Ne4 {[%clk 0:02:27.9]} 13... Nxe4 {[%clk 0:01:56.9]} 14.
Qxe4 {[%clk 0:02:28.8]} 14... Qd5 {[%clk 0:01:57.5]} 15. Qd3 {[%clk 0:02:24.2]}
15... Qxa2 {[%clk 0:01:51.6]} 16. c3 {[%clk 0:02:23.7]} 16... Be7 {[%clk
0:01:43]} 17. Rhf1 {[%clk 0:02:20]} 17... Nd7 {[%clk 0:01:40.1]} 18. Nxg6 {[%clk
0:02:03.3]} 18... fxg6 {[%clk 0:01:37]} 19. Qxg6+ {[%clk 0:02:01.9]} 19... Kd8
{[%clk 0:01:37.6]} 20. Qxg7 {[%clk 0:02:01.6]} 20... Bf6 {[%clk 0:01:22]} 21.
Bg5 {[%clk 0:01:58.7]} 21... Bxg5+ {[%clk 0:01:22.1]} 22. Qxg5+ {[%clk
0:01:57.6]} 22... Kc7 {[%clk 0:01:22.5]} 23. Qg3+ {[%clk 0:01:55.1]} 23... Kb6
{[%clk 0:01:21.2]} 24. Rf7 {[%clk 0:01:50.8]} 24... Rad8 {[%clk 0:01:16.3]} 25.
Rdf1 {[%clk 0:01:26.5]} 25... Qd5 {[%clk 0:01:04.2]} 26. h4 {[%clk 0:00:58]}
26... Rhg8 {[%clk 0:01:01.6]} 27. Rg7 {[%clk 0:00:55.8]} 27... e5 {[%clk
0:00:58.4]} 28. Qg5 {[%clk 0:00:36.1]} 28... Rxg7 {[%clk 0:00:56.1]} 29. Qxd8+
{[%clk 0:00:35.6]} 29... Ka6 {[%clk 0:00:51.3]} 30. h5 {[%clk 0:00:26.8]} 30...
Rxg2 {[%clk 0:00:50.7]} 31. Rd1 {[%clk 0:00:11.4]} 31... Qb3 {[%clk 0:00:40.3]}
32. Rd2 {[%clk 0:00:10.6]} 32... Rg1+ {[%clk 0:00:40.1]} 0-1

[Event "*** Titled Tuesday Blitz"]
[Site "Chess.com"]
[Date "2020.11.10"]
[Round "9"]
[White "SaqoChess_Twitch"]
[Black "Borsuk_Konstantin"]
[Result "1-0"]
[WhiteElo "2456"]
[BlackElo "2590"]
[TimeControl "180+1"]
[EndTime "11:51:37 PST"]
[Termination "SaqoChess_Twitch won by resignation"]

1. d4 {[%clk 0:03:00.9]} 1... Nf6 {[%clk 0:02:59.5]} 2. c4 {[%clk 0:03:01]} 2...
e6 {[%clk 0:02:59.8]} 3. Nc3 {[%clk 0:03:01.2]} 3... Bb4 {[%clk 0:03:00.3]} 4.
a3 {[%clk 0:03:01.1]} 4... Bxc3+ {[%clk 0:02:59.7]} 5. bxc3 {[%clk 0:03:02]}
5... c5 {[%clk 0:02:56.5]} 6. e3 {[%clk 0:03:02.4]} 6... Nc6 {[%clk 0:02:56.1]}
7. Bd3 {[%clk 0:03:02.3]} 7... d6 {[%clk 0:02:53.6]} 8. Ne2 {[%clk 0:03:00]}
8... b6 {[%clk 0:02:45.2]} 9. O-O {[%clk 0:02:55.6]} 9... Na5 {[%clk 0:02:43.5]}
10. e4 {[%clk 0:02:53.4]} 10... Qc7 {[%clk 0:02:39.9]} 11. f4 {[%clk 0:02:53.4]}
11... Ba6 {[%clk 0:02:37]} 12. e5 {[%clk 0:02:53]} 12... Nd7 {[%clk 0:02:35]}
13. f5 {[%clk 0:02:46.7]} 13... dxe5 {[%clk 0:02:31.3]} 14. fxe6 {[%clk
0:02:44]} 14... fxe6 {[%clk 0:02:30.7]} 15. Ng3 {[%clk 0:02:37.8]} 15... O-O-O
{[%clk 0:02:27.6]} 16. d5 {[%clk 0:02:36.4]} 16... Nf6 {[%clk 0:02:17.6]} 17.
Bg5 {[%clk 0:02:12.6]} 17... Kb8 {[%clk 0:01:32]} 18. Rxf6 {[%clk 0:02:08.1]}
18... gxf6 {[%clk 0:01:28]} 19. Bxf6 {[%clk 0:02:09]} 19... Rhe8 {[%clk
0:01:15.8]} 20. Qe2 {[%clk 0:01:43]} 20... exd5 {[%clk 0:01:06.5]} 21. Bxd8
{[%clk 0:01:42.6]} 21... Rxd8 {[%clk 0:01:06.1]} 22. cxd5 {[%clk 0:01:42.8]}
22... Bxd3 {[%clk 0:01:05.9]} 23. Qxd3 {[%clk 0:01:43.7]} 23... c4 {[%clk
0:01:05.4]} 24. Qe4 {[%clk 0:01:39]} 24... Qc5+ {[%clk 0:01:05.1]} 25. Kh1
{[%clk 0:01:37.7]} 25... Qxd5 {[%clk 0:01:05]} 26. Qe2 {[%clk 0:01:30.4]} 26...
Nc6 {[%clk 0:00:48.5]} 27. Re1 {[%clk 0:01:29.6]} 27... Qd3 {[%clk 0:00:47.9]}
28. Qe4 {[%clk 0:01:23.7]} 28... Qxe4 {[%clk 0:00:34.5]} 29. Nxe4 {[%clk
0:01:24.6]} 29... Kb7 {[%clk 0:00:33.9]} 30. g4 {[%clk 0:01:23.9]} 30... Ka6
{[%clk 0:00:33.9]} 31. g5 {[%clk 0:01:24]} 31... Ka5 {[%clk 0:00:32.1]} 32. h4
{[%clk 0:01:24.6]} 32... Ka4 {[%clk 0:00:32.4]} 33. h5 {[%clk 0:01:25.2]} 33...
Kxa3 {[%clk 0:00:29.8]} 34. Rf1 {[%clk 0:01:22.5]} 34... a5 {[%clk 0:00:27.7]}
35. Rf7 {[%clk 0:01:22.1]} 35... b5 {[%clk 0:00:22.1]} 36. Rxh7 {[%clk
0:01:20.9]} 36... b4 {[%clk 0:00:21.5]} 37. Rc7 {[%clk 0:01:21.3]} 37... b3
{[%clk 0:00:10.9]} 38. Rxc6 {[%clk 0:01:21.4]} 38... Rb8 {[%clk 0:00:09]} 39.
Nd2 {[%clk 0:01:19.1]} 39... b2 {[%clk 0:00:09.1]} 40. Nxc4+ {[%clk 0:01:19.2]}
40... Ka2 {[%clk 0:00:09.6]} 41. Nxb2 {[%clk 0:01:20.1]} 41... Kxb2 {[%clk
0:00:10.2]} 42. h6 {[%clk 0:01:19.9]} 42... a4 {[%clk 0:00:10.8]} 43. h7 {[%clk
0:01:18.5]} 43... a3 {[%clk 0:00:11.4]} 44. g6 {[%clk 0:01:13.8]} 44... Ra8
{[%clk 0:00:10.5]} 45. Rb6+ {[%clk 0:01:11.5]} 45... Kxc3 {[%clk 0:00:10]} 46.
Rb1 {[%clk 0:01:10.3]} 46... a2 {[%clk 0:00:06.9]} 47. Ra1 {[%clk 0:01:10.7]}
47... e4 {[%clk 0:00:07.4]} 48. Rxa2 {[%clk 0:01:10]} 1-0

[Event "*** Titled Tuesday Blitz"]
[Site "Chess.com"]
[Date "2020.11.10"]
[Round "9"]
[White "Tashik"]
[Black "AniJak"]
[Result "1/2-1/2"]
[WhiteElo "2457"]
[BlackElo "2383"]
[TimeControl "180+1"]
[EndTime "11:51:37 PST"]
[Termination "Game drawn by repetition"]

1. c4 {[%clk 0:03:00.9]} 1... e5 {[%clk 0:02:59.3]} 2. Nc3 {[%clk 0:02:59.9]}
2... Nc6 {[%clk 0:02:59.4]} 3. Nf3 {[%clk 0:03:00.3]} 3... g6 {[%clk 0:02:59.5]}
4. d4 {[%clk 0:02:59.4]} 4... exd4 {[%clk 0:02:57.3]} 5. Nxd4 {[%clk 0:03:00.3]}
5... Bg7 {[%clk 0:02:57.6]} 6. Nxc6 {[%clk 0:02:59.9]} 6... bxc6 {[%clk
0:02:58.5]} 7. g3 {[%clk 0:02:59.5]} 7... Ne7 {[%clk 0:02:57.8]} 8. Bg2 {[%clk
0:03:00.1]} 8... O-O {[%clk 0:02:57.1]} 9. O-O {[%clk 0:03:00.6]} 9... Rb8
{[%clk 0:02:57.6]} 10. Qa4 {[%clk 0:02:59.5]} 10... a6 {[%clk 0:02:48.6]} 11.
Rd1 {[%clk 0:02:58.1]} 11... d6 {[%clk 0:02:48.7]} 12. c5 {[%clk 0:02:49]} 12...
d5 {[%clk 0:02:47.5]} 13. e4 {[%clk 0:02:45.5]} 13... d4 {[%clk 0:02:18.5]} 14.
Ne2 {[%clk 0:02:43.2]} 14... Bg4 {[%clk 0:02:02.4]} 15. f3 {[%clk 0:02:41.5]}
15... d3 {[%clk 0:01:48.9]} 16. Nf4 {[%clk 0:02:35.7]} 16... Qd4+ {[%clk
0:01:45.9]} 17. Qxd4 {[%clk 0:02:33.4]} 17... Bxd4+ {[%clk 0:01:46.8]} 18. Kf1
{[%clk 0:02:33.6]} 18... Bc8 {[%clk 0:01:37.5]} 19. Nxd3 {[%clk 0:02:31.7]}
19... f5 {[%clk 0:01:35.2]} 20. e5 {[%clk 0:02:28.5]} 20... Be6 {[%clk
0:01:34.2]} 21. Nf4 {[%clk 0:00:56.2]} 21... Bc4+ {[%clk 0:01:32.9]} 22. Ke1
{[%clk 0:00:56.7]} 22... Bxe5 {[%clk 0:01:25.6]} 23. Bf1 {[%clk 0:00:49]} 23...
Bxf1 {[%clk 0:01:17.3]} 24. Kxf1 {[%clk 0:00:49.9]} 24... Bxb2 {[%clk
0:01:17.1]} 25. Bxb2 {[%clk 0:00:45.2]} 25... Rxb2 {[%clk 0:01:16.8]} 26. Rd7
{[%clk 0:00:39.4]} 26... Nd5 {[%clk 0:01:06.4]} 27. Nxd5 {[%clk 0:00:38.7]}
27... cxd5 {[%clk 0:01:07.3]} 28. Rxc7 {[%clk 0:00:38.9]} 28... Re8 {[%clk
0:01:04.6]} 29. Re1 {[%clk 0:00:36.3]} 29... Rxe1+ {[%clk 0:01:03.8]} 30. Kxe1
{[%clk 0:00:37.2]} 30... Rxa2 {[%clk 0:01:03.7]} 31. Rd7 {[%clk 0:00:36.2]}
31... Rxh2 {[%clk 0:01:02.8]} 32. Rxd5 {[%clk 0:00:34.2]} 32... Rc2 {[%clk
0:01:02.5]} 33. Kd1 {[%clk 0:00:33.5]} 33... Rc3 {[%clk 0:01:02.6]} 34. Kd2
{[%clk 0:00:26.7]} 34... Rc4 {[%clk 0:00:58.4]} 35. Kd3 {[%clk 0:00:25.8]} 35...
Rc1 {[%clk 0:00:57.9]} 36. Kd2 {[%clk 0:00:22.9]} 36... Rc4 {[%clk 0:00:56.6]}
37. Kd3 {[%clk 0:00:23.2]} 37... Rc1 {[%clk 0:00:56.6]} 38. Kd4 {[%clk
0:00:22.3]} 38... Kf7 {[%clk 0:00:52.1]} 39. Rd7+ {[%clk 0:00:21.4]} 39... Ke6
{[%clk 0:00:50.2]} 40. Ra7 {[%clk 0:00:20.3]} 40... Rd1+ {[%clk 0:00:47.3]} 41.
Kc4 {[%clk 0:00:20.6]} 41... Rc1+ {[%clk 0:00:47.5]} 42. Kd4 {[%clk 0:00:20.8]}
42... Rd1+ {[%clk 0:00:47.6]} 43. Kc4 {[%clk 0:00:21.1]} 43... Rc1+ {[%clk
0:00:43]} 44. Kd4 {[%clk 0:00:19.3]} 1/2-1/2

[Event "*** Titled Tuesday Blitz"]
[Site "Chess.com"]
[Date "2020.11.10"]
[Round "9"]
[White "zala02"]
[Black "Nemsko"]
[Result "0-1"]
[WhiteElo "2154"]
[BlackElo "2359"]
[TimeControl "180+1"]
[EndTime "11:51:37 PST"]
[Termination "Nemsko won on time"]

1. d4 {[%clk 0:01:52.7]} 1... Nf6 {[%clk 0:02:58]} 2. c4 {[%clk 0:01:53.3]} 2...
e6 {[%clk 0:02:58.3]} 3. Nc3 {[%clk 0:01:53.8]} 3... Bb4 {[%clk 0:02:56.3]} 4.
e3 {[%clk 0:01:54.1]} 4... O-O {[%clk 0:02:55.2]} 5. Ne2 {[%clk 0:01:54.3]} 5...
d5 {[%clk 0:02:54.9]} 6. a3 {[%clk 0:01:54.6]} 6... Be7 {[%clk 0:02:54.1]} 7.
cxd5 {[%clk 0:01:54.5]} 7... exd5 {[%clk 0:02:54.1]} 8. Nf4 {[%clk 0:01:55.2]}
8... c6 {[%clk 0:02:54.2]} 9. Bd3 {[%clk 0:01:54.6]} 9... a5 {[%clk 0:02:54.3]}
10. O-O {[%clk 0:01:54.5]} 10... Na6 {[%clk 0:02:53.7]} 11. Qc2 {[%clk
0:01:51.7]} 11... h6 {[%clk 0:02:50.4]} 12. Bd2 {[%clk 0:01:51.5]} 12... b5
{[%clk 0:02:44.6]} 13. Rae1 {[%clk 0:01:48.6]} 13... b4 {[%clk 0:02:41.9]} 14.
axb4 {[%clk 0:01:43.3]} 14... Nxb4 {[%clk 0:02:42.8]} 15. Qb1 {[%clk 0:01:42.3]}
15... Nxd3 {[%clk 0:02:43]} 16. Nxd3 {[%clk 0:01:41.7]} 16... Ba6 {[%clk
0:02:43.2]} 17. f3 {[%clk 0:01:39]} 17... Qb6 {[%clk 0:02:34.5]} 18. Rf2 {[%clk
0:01:37.4]} 18... Rfb8 {[%clk 0:02:16.6]} 19. Na4 {[%clk 0:01:36.1]} 19... Qc7
{[%clk 0:02:07.8]} 20. Nac5 {[%clk 0:01:27.1]} 20... Bb5 {[%clk 0:02:03.5]} 21.
Bc3 {[%clk 0:01:20.9]} 21... a4 {[%clk 0:02:01.3]} 22. e4 {[%clk 0:01:17.5]}
22... dxe4 {[%clk 0:01:56.4]} 23. fxe4 {[%clk 0:01:16.9]} 23... Ng4 {[%clk
0:01:55.5]} 24. Rf4 {[%clk 0:01:12.2]} 24... h5 {[%clk 0:01:39.1]} 25. e5 {[%clk
0:00:49]} 25... Bg5 {[%clk 0:01:24.7]} 26. Rf3 {[%clk 0:00:41]} 26... Bc4 {[%clk
0:01:14.6]} 27. h3 {[%clk 0:00:36.8]} 27... Nh6 {[%clk 0:01:13.3]} 28. e6 {[%clk
0:00:33.4]} 28... fxe6 {[%clk 0:01:04.6]} 29. Nxe6 {[%clk 0:00:34.3]} 29... Bxe6
{[%clk 0:01:04.3]} 30. Rxe6 {[%clk 0:00:35]} 30... a3 {[%clk 0:00:56.6]} 31. b4
{[%clk 0:00:16.9]} 31... Rf8 {[%clk 0:00:46.7]} 32. Qa2 {[%clk 0:00:14.9]} 32...
Kh8 {[%clk 0:00:41.5]} 33. Rxf8+ {[%clk 0:00:12.6]} 33... Rxf8 {[%clk
0:00:42.4]} 34. Qxa3 {[%clk 0:00:12.6]} 34... Qg3 {[%clk 0:00:38.1]} 35. Be1
{[%clk 0:00:10.6]} 35... Be3+ {[%clk 0:00:36.5]} 0-1

[Event "*** Titled Tuesday Blitz"]
[Site "Chess.com"]
[Date "2020.11.10"]
[Round "9"]
[White "Happy1712Drummer"]
[Black "Zq1"]
[Result "1/2-1/2"]
[WhiteElo "2244"]
[BlackElo "2582"]
[TimeControl "180+1"]
[EndTime "11:51:39 PST"]
[Termination "Game drawn by repetition"]

1. d4 {[%clk 0:03:00.9]} 1... Nf6 {[%clk 0:02:59.1]} 2. Nf3 {[%clk 0:03:00.1]}
2... e6 {[%clk 0:02:59]} 3. c4 {[%clk 0:02:59.1]} 3... a6 {[%clk 0:02:57.9]} 4.
Nc3 {[%clk 0:02:51]} 4... c5 {[%clk 0:02:57.6]} 5. e3 {[%clk 0:02:44.8]} 5... d5
{[%clk 0:02:56.3]} 6. a3 {[%clk 0:02:41.7]} 6... Nc6 {[%clk 0:02:54.1]} 7. dxc5
{[%clk 0:02:37.8]} 7... Bxc5 {[%clk 0:02:53.2]} 8. b4 {[%clk 0:02:37.8]} 8...
Ba7 {[%clk 0:02:52.9]} 9. Bb2 {[%clk 0:02:31]} 9... O-O {[%clk 0:02:52.4]} 10.
Be2 {[%clk 0:02:29.2]} 10... d4 {[%clk 0:02:51.6]} 11. exd4 {[%clk 0:02:28.1]}
11... Nxd4 {[%clk 0:02:51.8]} 12. c5 {[%clk 0:02:08.3]} 12... Nxe2 {[%clk
0:02:49.6]} 13. Qxe2 {[%clk 0:02:07.2]} 13... b6 {[%clk 0:02:47]} 14. Rd1 {[%clk
0:02:05.9]} 14... Qc7 {[%clk 0:02:46]} 15. cxb6 {[%clk 0:02:01.8]} 15... Bxb6
{[%clk 0:02:45]} 16. Rc1 {[%clk 0:01:56.3]} 16... Qb7 {[%clk 0:02:37.5]} 17. O-O
{[%clk 0:01:49.4]} 17... Bd7 {[%clk 0:02:36.9]} 18. Ne5 {[%clk 0:01:40.2]} 18...
Rfc8 {[%clk 0:02:27.6]} 19. Nxd7 {[%clk 0:01:26.7]} 19... Qxd7 {[%clk
0:02:26.7]} 20. Rfd1 {[%clk 0:01:24.2]} 20... Qe8 {[%clk 0:02:14.1]} 21. Ne4
{[%clk 0:01:15.7]} 21... Nxe4 {[%clk 0:02:09.9]} 22. Qxe4 {[%clk 0:01:12.7]}
22... f6 {[%clk 0:02:03.3]} 23. Rxc8 {[%clk 0:01:00.7]} 23... Rxc8 {[%clk
0:02:01.6]} 24. Rd6 {[%clk 0:00:53.8]} 24... Rd8 {[%clk 0:01:51.1]} 25. Qd3
{[%clk 0:00:50.9]} 25... Bc7 {[%clk 0:01:28.4]} 26. Rxd8 {[%clk 0:00:47]} 26...
Qxd8 {[%clk 0:01:28.6]} 27. Qe2 {[%clk 0:00:34.1]} 27... Qd5 {[%clk 0:01:23.6]}
28. g3 {[%clk 0:00:29.5]} 28... Qc6 {[%clk 0:01:22.2]} 29. Bd4 {[%clk
0:00:24.2]} 29... e5 {[%clk 0:01:18]} 30. Bc5 {[%clk 0:00:23.9]} 30... g6 {[%clk
0:01:16.7]} 31. Qc4+ {[%clk 0:00:21.6]} 31... Kh8 {[%clk 0:01:13.6]} 32. Qf7
{[%clk 0:00:20.7]} 32... h5 {[%clk 0:00:59.8]} 33. Be7 {[%clk 0:00:17.6]} 33...
Qc1+ {[%clk 0:00:54.9]} 34. Kg2 {[%clk 0:00:17]} 34... Qc6+ {[%clk 0:00:54.6]}
35. Kf1 {[%clk 0:00:11.6]} 35... Qh1+ {[%clk 0:00:52]} 36. Ke2 {[%clk
0:00:11.3]} 36... Qe4+ {[%clk 0:00:52]} 37. Kd2 {[%clk 0:00:10.1]} 37... Qd4+
{[%clk 0:00:51.5]} 38. Kc2 {[%clk 0:00:09.6]} 38... Qe4+ {[%clk 0:00:51.1]} 39.
Kb3 {[%clk 0:00:08]} 39... Qd3+ {[%clk 0:00:50]} 40. Kb2 {[%clk 0:00:07.8]}
40... Qd2+ {[%clk 0:00:49.6]} 41. Kb3 {[%clk 0:00:07.3]} 41... Qd3+ {[%clk
0:00:49.3]} 42. Kb2 {[%clk 0:00:07.3]} 42... Qd2+ {[%clk 0:00:48.4]} 43. Kb3
{[%clk 0:00:06.9]} 43... Qd3+ {[%clk 0:00:45.8]} 1/2-1/2